lending/lending_fUSD_20240807
["ID","MTS","AMOUNT","RATE_DAILY","PERIOD"]
[334415626,1723067433421,-150.0,0.00010219,2]
[334415627,1723067433431,-248.41,0.00010246,2]
[334415628,1723067433441,-248.41,0.00010249,2]
[334415629,1723067433450,-248.41,0.00010252,2]
[334415630,1723067433460,-248.41,0.00010254,2]
[334415631,1723067433470,-248.41,0.00010257,2]
[334415632,1723067433479,-248.41,0.0001026,2]
[334415633,1723067433489,-499.99,0.0001026,2]
[334415634,1723067433502,-150.99,0.0001026,2]
[334415635,1723067433513,-248.41,0.00010262,2]
[334415637,1723067433524,-248.41,0.00010265,2]
[334415640,1723067433535,-484.92,0.00010268,2]
[334415642,1723067433545,-248.41,0.00010268,2]
[334415644,1723067433557,-248.41,0.0001027,2]
[334415645,1723067433568,-248.41,0.00010273,2]
[334415646,1723067433579,-248.41,0.00010276,2]
[334415647,1723067433589,-248.41,0.00010278,2]
[334415649,1723067433600,-248.41,0.00010281,2]
[334415651,1723067433611,-248.41,0.00010284,2]
[334415653,1723067433622,-248.41,0.00010287,2]
[334415655,1723067433633,-248.41,0.00010289,2]
[334415657,1723067433643,-248.41,0.00010292,2]
[334415659,1723067433653,-248.41,0.00010295,2]
[334415661,1723067433663,-248.41,0.00010297,2]
[334415663,1723067433675,-1000.0,0.000103,3]
[334415665,1723067433685,-287.99,0.00010381,2]
[334415668,1723067433696,-1500.0,0.000104,3]
[334415670,1723067433707,-362.55,0.0001045,2]
[334415671,1723067433720,-2000.0,0.000105,3]
[334415672,1723067433733,-318.91,0.00010504,2]
[334415674,1723067433744,-520.0,0.00010504,2]
[334415676,1723067433756,-2600.0,0.000106,3]
[334415678,1723067433767,-261.64,0.00010679,2]
[334415680,1723067433778,-499.99,0.00010679,2]
[334415682,1723067433789,-500.0,0.000107,3]
[334415684,1723067433799,-480.0,0.00010711,2]
[334415686,1723067433811,-500.0,0.000108,3]
[334415689,1723067433822,-500.0,0.000109,3]
[334415691,1723067433832,-1118.4846,0.000109,2]
[334415693,1723067433843,-564.70010109,0.000109,2]
[334415695,1723067433853,-21177.82783434,0.000109,2]
[334415697,1723067433863,-1298.37795106,0.000109,2]
[334415699,1723067433874,-192.42893812,0.000109,2]
[334415701,1723067433884,-150.0,0.00010959,2]
[334415703,1723067433895,-250.0,0.00010959,2]
[334415705,1723067433905,-167.25085883,0.00010997,2]
[334415707,1723067433915,-1279.56552153,0.00010999,3]
[334415709,1723067433926,-1279.56552153,0.00010999,3]
[334415711,1723067433936,-1279.56552154,0.00010999,3]
[334415714,1723067433947,-2914.58350366,0.00011,2]
[334415716,1723067433958,-14217.33282921,0.00011,2]
[334415718,1723067433972,-704.5706,0.00011,2]
[334415720,1723067433985,-295.4294,0.00011,2]
[334415728,1723067438230,-1106.44534,9.962e-05,2]
[334415729,1723067438243,-2296.5345574,9.962e-05,2]
[334415730,1723067438253,-2046.91244788,0.00011,2]
[334415731,1723067438285,-7597.16552526,0.00011,2]
[334415732,1723067438299,-1954.87549614,0.00011,2]
[334415733,1723067438345,-6316.87889988,0.00011,2]
[334415734,1723067438358,-1474.11226425,0.00011,2]
[334415735,1723067438370,-3921.33644087,0.00011,2]
[334415736,1723067438432,-464.969985,0.00011,2]
[334415737,1723067438445,-55301.34278011,0.00011,2]
[334415738,1723067438457,-2759.70021323,0.00011,2]
[334415773,1723067440082,-1063.38098865,0.00011,2]
[334415842,1723067443466,-1464.06406546,0.00011,2]
[334415843,1723067443480,-1723.80973372,0.00011,2]
[334415846,1723067444082,-3939.92439593,0.00011,2]
[334415847,1723067444094,-6563.06925066,0.00011,2]
[334415848,1723067444105,-833.87987711,0.00011,2]
[334415849,1723067444117,-694.5375725,0.00011,2]
[334415850,1723067444129,-419.13536791,0.00011,2]
[334415851,1723067444141,-1364.2199562,0.00011,2]
[334415853,1723067444153,-448.95942964,0.00011,2]
[334415855,1723067444165,-12295.49214234,0.00011,2]
[334415857,1723067444177,-1279.97005618,0.00011,2]
[334415859,1723067444198,-935.898057,0.00011,2]
[334415860,1723067444209,-1179.59920442,0.00011,2]
[334415861,1723067444222,-555.66,0.00011,2]
[334415863,1723067448358,-431540.21549091,0.00011,2]
[334415864,1723067448534,-13845.770288,0.00011,2]
[334415865,1723067448546,-22941.34326881,0.00011,2]
[334415866,1723067448558,-312.29500972,0.00011,2]
[334415867,1723067448571,-54289.09677852,0.00011,2]
[334415873,1723067595321,500.0,0.00025,120]
[334415876,1723067896517,408.64,8.219e-05,2]
[334415877,1723068196172,500.0,0.00025,120]
[334415878,1723068263216,-255.12,9.839e-05,2]
[334415879,1723068263242,-170.17,9.843e-05,2]
[334415880,1723068263268,-288.0,9.851e-05,2]
[334415881,1723068263295,-2526.23,9.852e-05,2]
[334415882,1723068263320,-160.48,9.876e-05,2]
[334415883,1723068363509,388.2,8.219e-05,2]
[334415892,1723068632010,-769.6,9.842e-05,2]
[334415893,1723068632020,-250.0,9.844e-05,2]
[334415894,1723068632030,-246.17,9.857e-05,2]
[334415895,1723068632039,-192.45584816,9.916e-05,2]
[334415896,1723068632079,-1298.26415184,9.916e-05,2]
[334415897,1723068632088,-222.48,9.917e-05,2]
[334415898,1723068632098,-546.4633528,9.962e-05,2]
[334415899,1723068632107,-653.37427882,0.0001,2]
[334415900,1723068632119,-388.2,0.00010468,2]
[334415901,1723068632128,-226.27,0.00010783,2]
[334415902,1723068632138,-226.27,0.00010786,2]
[334415903,1723068632147,-499.99,0.00010786,2]
[334415904,1723068632158,-226.27,0.00010789,2]
[334415905,1723068632168,-226.27,0.00010792,2]
[334415906,1723068632177,-226.27,0.00010795,2]
[334415907,1723068632188,-226.27,0.00010798,2]
[334415908,1723068632198,-625.1137,0.000108,2]
[334415909,1723068632207,-226.27,0.00010801,2]
[334415910,1723068632218,-226.27,0.00010803,2]
[334415911,1723068632227,-226.27,0.00010806,2]
[334415912,1723068632237,-226.27,0.00010809,2]
[334415913,1723068632247,-226.27,0.00010812,2]
[334415914,1723068632256,-226.27,0.00010815,2]
[334415915,1723068632266,-226.27,0.00010818,2]
[334415916,1723068632276,-226.27,0.0001082,2]
[334415917,1723068632285,-226.27,0.00010823,2]
[334415918,1723068632294,-226.27,0.00010826,2]
[334415919,1723068632304,-2679.318,0.00010826,2]
[334415920,1723068632314,-150.0,0.00010829,2]
[334415921,1723068632323,-226.27,0.00010829,2]
[334415922,1723068632332,-226.27,0.00010832,2]
[334415923,1723068632342,-226.27,0.00010835,2]
[334415924,1723068632351,-226.27,0.00010838,2]
[334415925,1723068632360,-161.17,0.00010843,2]
[334415926,1723068632370,-697.89998,0.0001089,2]
[334415927,1723068632379,-172.22398976,0.000109,2]
[334415928,1723068632390,-2424.7847,0.000109,2]
[334415929,1723068632399,-169.84462218,0.000109,2]
[334415930,1723068632408,-174.83539434,0.000109,2]
[334415931,1723068632418,-250.0,0.00010959,2]
[334415932,1723068632428,-26457.29175182,0.00011,2]
[334415933,1723068632439,-500.00826729,0.00011,2]
[334415934,1723068632450,-601763.33781145,0.00011,2]
[334415935,1723068632476,-2800.0,0.00011,2]
[334415937,1723068638218,-2563361.34427219,0.00011,2]
[334415938,1723068638265,-703.20536157,0.00011,2]
[334415939,1723068638327,-664.7658,0.00011,2]
[334415940,1723068638338,-9484.92570382,0.00011,2]
[334415941,1723068638380,-7410.89783384,0.00011,2]
[334415943,1723068638391,-1507.57772365,0.00011,2]
[334415945,1723068638403,-435.35854429,0.00011,2]
[334415947,1723068638415,-522.95955266,0.00011,2]
[334415950,1723068638427,-50448.83835652,0.00011,2]
[334415951,1723068638441,-685.75832183,0.00011,2]
[334415952,1723068638452,-30687.70725279,0.00011,2]
[334415953,1723068638463,-20046.88647575,0.00011,2]
[334415957,1723068640189,-31971.56757775,0.00011,2]
[334415958,1723068640682,-3470.13415581,0.00011,2]
[334415959,1723068640707,-5485.2,0.00011,2]
[334415960,1723068641088,-457.48664238,0.00011,2]
[334415967,1723068643122,-277.455,0.00011,2]
[334415968,1723068643170,-3600.41707185,0.00011,2]
[334416011,1723068644063,-2301.288471,0.00011,2]
[334416039,1723068646158,-316.24,0.00011,2]
[334416040,1723068646323,-33095.63181841,0.00011,2]
[334416041,1723068646382,-10975.67970346,0.00011,2]
[334416069,1723068680685,308.24375309,0.00025,90]
[334416071,1723068730647,366.41152748,0.00025,90]
[334416073,1723068817955,370.09,8.455e-05,2]
[334416089,1723069291849,351.58,8.332e-05,2]
[334416091,1723069425039,517.0,0.000248,120]
[334416092,1723069581469,500.0,0.000248,90]
[334416094,1723069778918,500.0,0.000248,90]
[334416112,1723069832252,-1256.92584908,0.00010099,2]
[334416113,1723069832262,-615.68,0.00010125,2]
[334416114,1723069832273,-246.17,0.00010164,2]
[334416115,1723069832283,-250.0,0.0001017,2]
[334416116,1723069832304,-302.70684391,0.00010218,2]
[334416117,1723069832315,-595.29315609,0.00010218,2]
[334416118,1723069832325,-236.51,0.00010228,2]
[334416119,1723069832335,-1500.0,0.00010248,2]
[334416120,1723069832348,-155.0,0.00010248,2]
[334416121,1723069832358,-204.40291703,0.00010248,2]
[334416122,1723069832367,-155.0,0.00010248,2]
[334416123,1723069832377,-384.32,0.0001026,2]
[334416124,1723069832389,-173.4,0.00010406,2]
[334416125,1723069832399,-169.71,0.00010454,2]
[334416126,1723069832409,-351.58,0.00010595,2]
[334416127,1723069832418,-1865.0,0.000107,2]
[334416128,1723069832427,-1000.0,0.000107,2]
[334416129,1723069832437,-150.0,0.00010899,2]
[334416131,1723069832447,-172.22398976,0.000109,2]
[334416133,1723069832456,-3237.2772,0.000109,2]
[334416134,1723069832465,-328.1519,0.000109,2]
[334416135,1723069832475,-1721.4063,0.000109,2]
[334416136,1723069832489,-1000.0,0.000109,2]
[334416137,1723069832498,-11990.72453712,0.000109,2]
[334416138,1723069832510,-767.59814218,0.000109,2]
[334416139,1723069832521,-1549.74687682,0.000109,2]
[334416140,1723069832534,-2481.20419989,0.000109,2]
[334416141,1723069832545,-1865.69249295,0.000109,2]
[334416142,1723069832558,-1463.84005104,0.000109,2]
[334416143,1723069832568,-1000.0,0.000109,2]
[334416144,1723069832578,-755.23768558,0.000109,2]
[334416145,1723069832587,-499.99,0.00010959,2]
[334416146,1723069832597,-250.0,0.00010959,2]
[334416147,1723069832607,-2589.02979702,0.00011,2]
[334416148,1723069832618,-10957.48297991,0.00011,2]
[334416149,1723069832628,-2425.71427999,0.00011,2]
[334416150,1723069832640,-2585.10929238,0.00011,2]
[334416151,1723069832653,-1635.94847803,0.00011,2]
[334416152,1723069832664,-561.51132701,0.00011,2]
[334416153,1723069832675,-555.90330277,0.00011,2]
[334416154,1723069832687,-327.85685687,0.00011,2]
[334416155,1723069832699,-5470.3656739,0.00011,2]
[334416156,1723069832710,-484549.70065332,0.00011,2]
[334416157,1723069832721,-298.3,0.00011,2]
[334416158,1723069832732,-872.67905712,0.00011,2]
[334416159,1723069832743,-341.48088377,0.00011,2]
[334416165,1723069838391,-54749.99999996,0.00011,2]
[334416166,1723069838403,-1432.3301818,0.00011,2]
[334416167,1723069838414,-8179.99999998,0.00011,2]
[334416168,1723069838425,-614.60712979,0.00011,2]
[334416169,1723069838454,-3161.11861504,0.00011,2]
[334416170,1723069838506,-533.97245626,0.00011,2]
[334416171,1723069838636,-548.33,0.00011,2]
[334416172,1723069838686,-1107.2408442,0.00011,2]
[334416175,1723069838697,-8607.44545519,0.00011,2]
[334416177,1723069838709,-14335.7399484,0.00011,2]
[334416297,1723069840474,-6315.3454475,0.00011,2]
[334416298,1723069840676,-5489.0,0.00011,2]
[334416299,1723069840689,-1620.40557737,0.00011,2]
[334416300,1723069840702,-2028.24217741,0.00011,2]
[334416301,1723069840713,-11222.92795268,0.00011,2]
[334416302,1723069840726,-669.21960628,0.00011,2]
[334416303,1723069840737,-426.27754968,0.00011,2]
[334416304,1723069840759,-274.31939,0.00011,2]
[334416305,1723069840781,-2490.75,0.00011,2]
[334416317,1723069843594,-3029.65,0.00011,2]
[334416330,1723069843720,-3313.60911296,0.00011,2]
[334416332,1723069843731,-526.02,0.00011,2]
[334416334,1723069843742,-16845.11754046,0.00011,2]
[334416370,1723069845830,817.7,0.000248,90]
[334416372,1723069846396,-2807.81747002,0.00011,2]
[334416373,1723069846410,-5493.85,0.00011,2]
[334416374,1723069846433,-1302.53375919,0.00011,2]
[334416375,1723069846572,-1168.77872412,0.00011,2]
[334416376,1723069846587,-8214.42117445,0.00011,2]
[334416377,1723069846601,-5479.2738,0.00011,2]
[334416394,1723070008758,316.42,8.517e-05,2]
[334416396,1723070490226,300.59,8.392e-05,2]
[334416397,1723070534694,5531.33491905,8.517e-05,2]
[334416398,1723070540172,694.23595745,8.392e-05,2]
[334416399,1723070541615,155.0,8.392e-05,2]
[334416400,1723070547589,871.55601316,8.392e-05,2]
[334416401,1723070549528,7576.46596162,8.392e-05,2]
[334416402,1723070560780,200.0,8.35e-05,2]
[334416403,1723070563808,291.36870266,8.392e-05,2]
[334416404,1723070575931,485.47880185,8.392e-05,2]
[334416405,1723070577916,759.9667326,8.392e-05,2]
[334416406,1723070585615,3251.22971856,8.392e-05,2]
[334416408,1723070671502,4338.9195479,8.392e-05,2]
[334416409,1723070687480,200.0,8.35e-05,2]
[334416410,1723070707452,753.0,8.392e-05,2]
[334416411,1723070795645,-300.0,0.00010171,2]
[334416412,1723070795667,-10530.0262807,0.00010172,2]
[334416413,1723070795691,-1000.0,0.00010226,2]
[334416414,1723070795715,-7764.22,0.00010241,2]
[334416415,1723070795740,-198.8,0.00010243,2]
[334416416,1723070795760,-4089.74,0.00010253,2]
[334416417,1723070795782,-250.0,0.00010269,2]
[334416418,1723070795804,-150.0,0.00010274,2]
[334416419,1723070795828,-256.59,0.00010308,2]
[334416420,1723070795855,-168.0,0.00010317,2]
[334416421,1723070795876,-265.33096073,0.00010323,2]
[334416422,1723070795900,-295.72175684,0.00010323,2]
[334416423,1723070795922,-300.59,0.00010656,2]
[334416424,1723070795942,-499.99,0.00010656,2]
[334416425,1723070795963,-1081.58332,0.0001089,2]
[334416426,1723070795985,-198.44234241,0.000109,2]
[334416427,1723070796007,-250.0,0.00010959,2]
[334416428,1723070796030,-6773.25638846,0.00011,2]
[334416429,1723070796054,-4506578.02566282,0.00011,2]
[334416430,1723070796078,-5498766.27704951,0.00011,2]
[334416431,1723070796103,-986841.05346399,0.00011,2]
[334416432,1723070796124,-250.0,0.00011,2]
[334416433,1723070796145,-30000.0,0.00011,2]
[334416434,1723070796165,-30000.0,0.00011,2]
[334416435,1723070796189,-1202697.02239221,0.00011,2]
[334416436,1723070796209,-9018.79127756,0.00011,2]
[334416437,1723070796231,-1103476.53910477,0.00011,2]
[334416440,1723070871410,-578.55400603,0.00011105,7]
[334416441,1723070929466,-7759.08820818,0.00013,30]
[334416442,1723070949752,425.46,9.21e-05,2]
[334416499,1723071038702,-2944.34240302,0.00011,2]
[334416501,1723071038714,-9101.3781579,0.00011,2]
[334416503,1723071038726,-8693.51986952,0.00011,2]
[334416504,1723071038737,-1381.24087936,0.00011,2]
[334416505,1723071038749,-3279.39036009,0.00011,2]
[334416506,1723071038762,-10251.87474492,0.00011,2]
[334416507,1723071038773,-63175.00867555,0.00011,2]
[334416508,1723071038785,-3166.04903559,0.00011,2]
[334416509,1723071038801,-33278.88494011,0.00011,2]
[334416510,1723071038992,-2456.04146216,0.00011,2]
[334416666,1723071040567,-28650.73615971,0.00011,2]
[334416689,1723071040779,-840.96512736,0.00011,2]
[334416691,1723071040791,-915.76604276,0.00011,2]
[334416693,1723071040802,-828.917953,0.00011,2]
[334416978,1723071043772,-382.12258582,0.00011,2]
[334417000,1723071043968,-534.13154207,0.00011,2]
[334417002,1723071043979,-8632.87567252,0.00011,2]
[334417004,1723071043990,-4526.756931,0.00011,2]
[334417025,1723071044178,-922.5063449,0.00011,2]
[334417027,1723071044190,-367.69336575,0.00011,2]
[334417029,1723071044201,-3067.36856786,0.00011,2]
[334417077,1723071044768,-1732.275,0.00011,2]
[334417079,1723071044779,-361.6920653,0.00011,2]
[334417081,1723071044792,-814.55264413,0.00011,2]
[334417083,1723071044804,-6400.89541296,0.00011,2]
[334417086,1723071044817,-503.19150413,0.00011,2]
[334417088,1723071044830,-2412.0,0.00011,2]
[334417090,1723071044843,-752.79796392,0.00011,2]
[334417093,1723071044854,-1559.45168708,0.00011,2]
[334417095,1723071044865,-273.88727203,0.00011,2]
[334417101,1723071044918,-381.4185858,0.00011,2]
[334417103,1723071044930,-641.5247125,0.00011,2]
[334417257,1723071046612,-882.94760634,0.00011,2]
[334417259,1723071046624,-34161.23272605,0.00011,2]
[334417261,1723071046637,-898.99522388,0.00011,2]
[334417266,1723071046675,-900.09,0.00011,2]
[334417269,1723071046687,-978.88877909,0.00011,2]
[334417273,1723071046698,-306.42815309,0.00011,2]
[334417275,1723071046709,-356.88365472,0.00011,2]
[334417277,1723071046720,-480.5696256,0.00011,2]
[334417279,1723071046731,-1494.82037085,0.00011,2]
[334417282,1723071046747,-1793.87083348,0.00011,2]
[334417284,1723071046759,-283.51720375,0.00011,2]
[334417286,1723071046770,-300.16333141,0.00011,2]
[334417288,1723071046781,-1661.36023817,0.00011,2]
[334417290,1723071046792,-1077.87499807,0.00011,2]
[334417292,1723071046803,-2007.07929185,0.00011,2]
[334417294,1723071046818,-5966.55757461,0.00011,2]
[334417297,1723071046829,-2244.9999773,0.00011,2]
[334417300,1723071046848,-52333.48844806,0.00011,2]
[334417302,1723071046859,-361.43277495,0.00011,2]
[334417308,1723071046905,-718.1047832,0.00011,2]
[334417310,1723071046918,-1346.35809449,0.00011,2]
[334417312,1723071046930,-8027.63642451,0.00011,2]
[334417800,1723071381134,423.82,8.411e-05,2]
[334417802,1723071844286,402.62,8.219e-05,2]
[334417803,1723071991759,250.0,9.596e-05,2]
[334417804,1723072047902,974.42,9.576e-05,2]
[334417805,1723072106224,-237.82,9.604e-05,2]
[334417806,1723072106256,-200.0,9.609e-05,2]
[334417807,1723072106283,-796.69,9.655e-05,2]
[334417808,1723072106310,-4430.874159,9.661e-05,2]
[334417839,1723072231696,-153.835841,9.661e-05,2]
[334417840,1723072231706,-345.32,9.671e-05,2]
[334417841,1723072231715,-327.14283566,9.764e-05,2]
[334417842,1723072231727,-2015.69716434,9.764e-05,2]
[334417843,1723072231736,-800.0,9.868e-05,2]
[334417844,1723072231746,-188.85,0.00010131,2]
[334417845,1723072231756,-240.00725521,0.00010195,2]
[334417846,1723072231788,-45.81765854,0.00010195,2]
[334417847,1723072231797,-156.3,0.00010207,2]
[334417848,1723072231807,-156.3,0.00010215,2]
[334417849,1723072231818,-177.52,0.00010222,2]
[334417850,1723072231827,-156.3,0.00010224,2]
[334417851,1723072231839,-3621.10727403,0.00010224,2]
[334417852,1723072231884,-505.38615579,0.00010224,2]
[334417853,1723072231895,-5262.66657018,0.00010224,2]
[334417854,1723072231905,-620.76,0.00010224,2]
[334417855,1723072231914,-741.18,0.00010224,2]
[334417856,1723072231923,-11.51080826,0.00010232,2]
[334417857,1723072231935,-144.78919174,0.00010232,2]
[334417858,1723072231944,-156.3,0.00010241,2]
[334417859,1723072231954,-156.3,0.00010249,2]
[334417860,1723072231963,-156.3,0.00010258,2]
[334417861,1723072231972,-27.74423305,0.00010267,2]
[334417871,1723072237992,-305.05576695,0.00010267,2]
[334417872,1723072238004,-499.99,0.00010313,2]
[334417873,1723072238017,-118.45045207,0.00010459,2]
[334417874,1723072238029,-284.16954793,0.00010459,2]
[334417875,1723072238040,-500.0,0.000107,3]
[334417876,1723072238051,-995.67112458,0.000108,3]
[334417877,1723072238062,-4.32887542,0.000108,3]
[334417878,1723072238072,-200.0,0.0001081,2]
[334417879,1723072238083,-193.4,0.00010868,2]
[334417880,1723072238093,-345.32,0.0001088,2]
[334417881,1723072238104,-901.31943,0.0001089,2]
[334417882,1723072238113,-726.912,0.000109,2]
[334417883,1723072238124,-172.22398976,0.000109,2]
[334417884,1723072238134,-500.0,0.000109,2]
[334417885,1723072238144,-123518.95238626,0.000109,2]
[334418035,1723072239847,-2128.2593829,0.000109,2]
[334418078,1723072240257,-609.16280418,0.000109,2]
[334418080,1723072240269,-710.02592826,0.000109,2]
[334418126,1723072240711,-1601.53065016,0.000109,2]
[334418128,1723072240723,-1058.9027694,0.000109,2]
[334418315,1723072242772,-6743.53679999,0.000109,2]
[334418317,1723072242784,-1114.98776206,0.000109,2]
[334418325,1723072242847,-567.63859501,0.000109,2]
[334418327,1723072242861,-1134.31999994,0.000109,2]
[334418329,1723072242872,-912.45,0.000109,2]
[334418336,1723072242926,-290.57000001,0.000109,2]
[334418338,1723072242938,-104609.66292183,0.000109,2]
[334418340,1723072242947,-1600.0,0.000109,3]
[334418342,1723072242957,-1667.39,0.000109,2]
[334418344,1723072242967,-250.0,0.00010959,2]
[334418346,1723072242976,-200.0,0.00010973,2]
[334418348,1723072242986,-58262.94707817,0.00011,2]
[334418350,1723072242997,-2045.6991,0.00011,2]
[334418352,1723072243008,-5923.04049456,0.00011,2]
[334418358,1723072243057,-369.12270208,0.00011,2]
[334418417,1723072243650,-1110.48632156,0.00011,2]
[334418558,1723072245875,-295074.29854229,0.00011,2]
[334418559,1723072245886,-627.23184982,0.00011,2]
[334418560,1723072245898,-1919.57705919,0.00011,2]
[334418561,1723072245909,-446.16751543,0.00011,2]
[334418562,1723072245920,-453.46218221,0.00011,2]
[334418563,1723072245931,-786.91456001,0.00011,2]
[334418564,1723072245943,-544.4787341,0.00011,2]
[334418565,1723072245970,-387.7317709,0.00011,2]
[334418566,1723072245981,-611.967,0.00011,2]
[334418567,1723072245993,-371.88291753,0.00011,2]
[334418568,1723072246004,-1324.8,0.00011,2]
[334418569,1723072246176,-344.849717,0.00011,2]
[334418570,1723072246190,-740.40033588,0.00011,2]
[334418571,1723072246213,-1697.85747614,0.00011,2]
[334418572,1723072246224,-310.531547,0.00011,2]
[334418573,1723072246236,-418.84953567,0.00011,2]
[334418574,1723072246247,-321.8,0.00011,2]
[334418575,1723072246259,-298.66236919,0.00011,2]
[334418582,1723072408359,381.84,8.478e-05,2]
[334418584,1723072657967,227.67484022,8.478e-05,2]
[334418585,1723072666869,1223.35682624,8.478e-05,2]
[334418586,1723072678672,7576.46596162,8.478e-05,2]
[334418587,1723072678840,43992.94690483,8.478e-05,2]
[334418588,1723072680282,692.9783162,8.478e-05,2]
[334418589,1723072695674,7576.46596162,8.478e-05,2]
[334418590,1723072697574,188.0,8.478e-05,2]
[334418591,1723072699953,1284.65790957,8.478e-05,2]
[334418592,1723072699984,1268.17340653,8.478e-05,2]
[334418593,1723072729557,159.3,7.716e-05,2]
[334418594,1723072742891,1223.35682624,8.478e-05,2]
[334418595,1723072747651,290.92754573,8.478e-05,2]
[334418596,1723072747764,2655.07180159,8.478e-05,2]
[334418597,1723072781282,510.70111325,8.478e-05,2]
[334418598,1723072785448,227.67484022,8.478e-05,2]
[334418599,1723072794186,1284.65790957,8.478e-05,2]
[334418601,1723072803682,2633.61755704,8.478e-05,2]
[334418602,1723072833895,1223.35682624,8.478e-05,2]
[334418603,1723072874463,227.67484022,8.478e-05,2]
[334418604,1723072896694,827.90804449,8.478e-05,2]
[334418605,1723072912884,867.19331787,8.478e-05,2]
[334418606,1723072932103,436.81,8.219e-05,2]
[334418607,1723072938816,189.53,9.587e-05,2]
[334418608,1723072958470,227.67484022,8.478e-05,2]
[334418609,1723072963577,23900.0,9.587e-05,2]
[334418610,1723072988317,250.0,9.587e-05,2]
[334418611,1723073024646,436.95,9.594e-05,2]
[334418612,1723073104003,5404.93,9.601e-05,2]
[334418614,1723073173069,558.14,9.6e-05,2]
[334418615,1723073263916,159.3,7.711e-05,2]
[334418617,1723073363463,694.3434613,9.502e-05,2]
[334418619,1723073378708,-180.45,9.603e-05,2]
[334418621,1723073378748,-500.0,9.605e-05,2]
[334418623,1723073378786,-168.83,9.624e-05,2]
[334418625,1723073378831,-1000.0,9.64e-05,2]
[334418626,1723073378868,-2071.24134886,9.644e-05,2]
[334418627,1723073397894,1256.92584908,9.347e-05,2]
[334418632,1723073407788,15336.7279,9.502e-05,2]
[334418640,1723073432961,-138.60865114,9.644e-05,2]
[334418641,1723073432971,-266.24,9.664e-05,2]
[334418642,1723073432982,-228.74,0.0001015,2]
[334418643,1723073432993,-179.02,0.00010192,2]
[334418644,1723073433005,-150.99,0.00010275,2]
[334418645,1723073433016,-1220.31,0.00010276,2]
[334418646,1723073433027,-499.99,0.00010276,2]
[334418648,1723073433038,-1292.55225034,0.00010276,2]
[334418650,1723073433049,-1292.55225034,0.00010276,2]
[334418652,1723073433059,-130.99684818,0.00010414,2]
[334418654,1723073433072,-37.64315182,0.00010414,2]
[334418656,1723073433083,-801.11,0.00010414,2]
[334418658,1723073433092,-150.99,0.00010414,2]
[334418660,1723073433102,-436.81,0.00010455,2]
[334418661,1723073433112,-757.93,0.00010527,2]
[334418662,1723073433121,-757.93,0.0001053,2]
[334418663,1723073433131,-757.93,0.00010533,2]
[334418664,1723073433141,-757.93,0.00010535,2]
[334418665,1723073433153,-757.93,0.00010538,2]
[334418666,1723073433163,-757.93,0.00010541,2]
[334418667,1723073433174,-757.93,0.00010544,2]
[334418668,1723073433184,-757.93,0.00010546,2]
[334418669,1723073433194,-757.93,0.00010549,2]
[334418670,1723073433205,-757.93,0.00010552,2]
[334418671,1723073433221,-757.93,0.00010555,2]
[334418672,1723073433232,-757.93,0.00010557,2]
[334418673,1723073433245,-757.93,0.0001056,2]
[334418674,1723073433255,-757.93,0.00010563,2]
[334418675,1723073433266,-757.93,0.00010566,2]
[334418676,1723073433276,-757.93,0.00010568,2]
[334418677,1723073433287,-757.93,0.00010571,2]
[334418678,1723073433297,-757.93,0.00010574,2]
[334418679,1723073433307,-757.93,0.00010577,2]
[334418680,1723073433324,-392.10412366,0.0001058,2]
[334418683,1723073437969,-365.82587634,0.0001058,2]